bitfinex/quotes_BTCUSD_20240613
["timestamp","ask_amount","ask_price","bid_price","bid_amount"]
[1718256852682,0.00686,67570.0,67569.0,0.77091]
[1718256852880,0.00686,67570.0,67569.0,0.84391]
[1718256853422,0.00686,67570.0,67569.0,0.79981993]
[1718256855041,0.00686,67570.0,67569.0,0.69981993]
[1718256855418,0.00686,67570.0,67569.0,0.79981993]
[1718256855631,0.00686,67570.0,67569.0,0.69981993]
[1718256855837,0.00686,67570.0,67569.0,0.79981993]
[1718256856042,0.00686,67570.0,67569.0,0.69981993]
[1718256856286,0.00686,67570.0,67569.0,0.79981993]
[1718256856457,0.00686,67570.0,67569.0,0.84388523]
[1718256856715,0.00686,67570.0,67569.0,0.79981993]
[1718256856907,0.00686,67570.0,67569.0,0.84388066]
[1718256857068,0.00686,67570.0,67569.0,0.79981993]
[1718256863786,0.0008108,67575.0,67574.0,0.4696]
[1718256863998,0.0008108,67575.0,67574.0,1.04238672]
[1718256864241,0.0008108,67575.0,67574.0,1.05834216]
[1718256865239,0.0018108,67575.0,67574.0,0.98022676]
[1718256865442,0.0018108,67575.0,67574.0,1.04624397]
[1718256865648,0.0008108,67575.0,67574.0,1.03624397]
[1718256865828,0.0028108,67575.0,67574.0,1.06024397]
[1718256866168,0.0028108,67575.0,67574.0,0.93843714]
[1718256866406,0.0018108,67575.0,67574.0,0.92443714]
[1718256866887,0.0028108,67575.0,67574.0,0.93843714]
[1718256867342,0.0028108,67575.0,67574.0,0.87241993]
[1718256867757,0.0028108,67575.0,67574.0,0.81491993]
[1718256867758,0.0038108,67575.0,67574.0,0.81491993]
[1718256867969,0.0038108,67575.0,67574.0,0.93043986]
[1718256868184,0.0038108,67575.0,67574.0,0.88641993]
[1718256870201,0.0038108,67575.0,67574.0,0.73641993]
[1718256870448,0.0038108,67575.0,67574.0,0.59191993]
[1718256870701,0.0038108,67575.0,67574.0,0.66341993]
[1718256871529,0.0038108,67575.0,67574.0,0.71341993]
[1718256871732,0.0018108,67575.0,67574.0,0.69941993]
[1718256871905,0.0018108,67575.0,67574.0,0.81444084]
[1718256872105,0.0008108,67575.0,67574.0,0.80044084]
[1718256872351,0.0008108,67575.0,67574.0,0.75044084]
[1718256872667,0.0028108,67575.0,67574.0,0.82744084]
[1718256873021,0.00252643,67575.0,67574.0,0.82744084]
[1718256873239,0.00252643,67575.0,67574.0,0.26202091]
[1718256873442,0.00252643,67575.0,67574.0,0.23352091]
[1718256874616,0.00240775,67575.0,67574.0,0.21352091]
[1718256875040,0.00240775,67575.0,67574.0,0.23352091]
[1718256875245,0.00240775,67575.0,67574.0,0.21352091]
[1718256875885,0.00240775,67575.0,67574.0,0.16202091]
[1718256876085,0.00240775,67575.0,67574.0,0.23352091]
[1718256877369,0.00240775,67575.0,67574.0,0.21352091]
[1718256877575,0.00240775,67575.0,67574.0,0.23352091]
[1718256879494,0.00240775,67575.0,67574.0,0.14202091]
[1718256879689,0.00240775,67575.0,67574.0,0.23352091]
[1718256880110,0.00240775,67575.0,67574.0,0.21352091]
[1718256880517,0.00240775,67575.0,67574.0,0.16202091]
[1718256880730,0.00240775,67575.0,67574.0,0.23352091]
[1718256882768,0.00240775,67575.0,67574.0,0.23446691]
[1718256883199,0.00326775,67575.0,67574.0,0.23446691]
[1718256889627,0.00326775,67575.0,67574.0,0.14296691]
[1718256890217,0.15056775,67575.0,67574.0,0.14296691]
[1718256890418,0.15056775,67575.0,67574.0,0.027946]
[1718256891796,0.14956775,67575.0,67574.0,0.014946]
[1718256892202,0.15056775,67575.0,67574.0,0.007946]
[1718256892417,0.14956775,67575.0,67574.0,0.007946]
[1718256892975,0.15056775,67575.0,67574.0,0.021946]
[1718256893175,0.15028275,67575.0,67574.0,0.021946]
[1718256894044,0.14928275,67575.0,67574.0,0.007946]
[1718256895431,0.15028275,67575.0,67574.0,0.013946]
[1718256898828,0.00298275,67575.0,67574.0,0.033946]
[1718256899017,0.00298275,67575.0,67574.0,0.013946]
[1718256901658,0.00298275,67575.0,67574.0,0.033946]
[1718256901880,0.00298275,67575.0,67574.0,0.11136477]
[1718256906640,0.00298275,67575.0,67574.0,0.3556847]
[1718256906815,0.00298275,67575.0,67574.0,0.86696593]
[1718256907029,0.00298275,67575.0,67574.0,0.98114398]
[1718256907440,0.00086,67586.0,67585.0,0.4146]
[1718256907643,0.00086,67586.0,67585.0,0.84750482]
[1718256907866,0.00086,67586.0,67585.0,0.89750482]
[1718256908041,0.00086,67593.0,67592.0,0.2589]
[1718256908397,0.00086,67593.0,67592.0,0.87447315]
[1718256908593,0.00086,67593.0,67592.0,0.89747315]
[1718256909043,0.00086,67593.0,67592.0,1.04247307]
[1718256909263,0.00086,67593.0,67592.0,1.02039185]
[1718256909475,0.00086,67593.0,67592.0,0.4472323]
[1718256909688,0.00086,67593.0,67592.0,0.48871993]
[1718256909890,0.00186,67593.0,67592.0,0.53871993]
[1718256910942,0.00186,67593.0,67592.0,0.55271993]
[1718256911145,0.00086,67593.0,67592.0,0.53871993]
[1718256911350,0.00186,67593.0,67592.0,0.55271993]
[1718256911566,0.00186,67593.0,67592.0,0.53871993]
[1718256911772,0.00086,67593.0,67592.0,0.53871993]
[1718256911974,0.00186,67593.0,67592.0,0.55271993]
[1718256912131,0.00186,67593.0,67592.0,0.65271993]
[1718256912975,0.00186,67593.0,67592.0,0.85841993]
[1718256913176,0.00186,67593.0,67592.0,0.86741993]
[1718256914177,0.00086,67593.0,67592.0,0.86741993]
[1718256914376,0.00086,67593.0,67592.0,0.88141993]
[1718256914938,0.00086,67593.0,67592.0,0.96051993]
[1718256915077,0.00086,67593.0,67592.0,0.98851993]
[1718256917307,0.00086,67593.0,67592.0,0.88851993]
[1718256917705,0.00086,67593.0,67592.0,0.98851993]
[1718256919741,0.00086,67593.0,67592.0,0.88851993]
[1718256919970,0.00086,67593.0,67592.0,0.98851993]
[1718256921259,0.00086,67593.0,67592.0,0.88851993]
[1718256921468,0.00086,67593.0,67592.0,0.83851993]
[1718256921970,0.00086,67593.0,67592.0,0.88851993]
[1718256924115,0.00086,67593.0,67592.0,0.97451993]
[1718256924419,0.00086,67593.0,67592.0,0.88851993]
[1718256924833,0.00086,67593.0,67592.0,0.87451993]
[1718256925040,0.00086,67593.0,67592.0,0.97451993]
[1718256925238,0.00086,67593.0,67592.0,0.98851993]
[1718256925476,0.00086,67593.0,67592.0,0.88851993]
[1718256925852,0.00086,67593.0,67592.0,0.83851993]
[1718256926819,0.00086,67593.0,67592.0,0.75451993]
[1718256927015,0.00086,67593.0,67592.0,0.67661993]
[1718256927223,0.06206,67593.0,67592.0,0.27231993]
[1718256927680,0.06206,67593.0,67592.0,0.028]
[1718256927882,0.13786,67593.0,67592.0,0.028]
[1718256928288,0.13786,67593.0,67592.0,0.014]
[1718256928486,0.14271511,67592.0,67586.0,0.000946]
[1718256928709,0.0665,67591.0,67586.0,0.000946]
[1718256930091,0.0665,67591.0,67586.0,0.014946]
[1718256930609,0.0665,67591.0,67586.0,0.028946]
[1718256931445,0.0665,67588.0,67586.0,0.028946]
[1718256931855,0.08799178,67587.0,67586.0,0.028946]
[1718256932415,0.15449178,67587.0,67586.0,0.014946]
[1718256932619,0.15449178,67587.0,67586.0,0.000946]
[1718256933049,0.15449178,67587.0,67586.0,0.028946]
[1718256933462,0.15449178,67587.0,67586.0,0.014946]
[1718256933884,0.15449178,67587.0,67586.0,0.028946]
[1718256934812,0.15449178,67587.0,67586.0,0.014946]
[1718256935247,0.15449178,67587.0,67586.0,0.028946]
[1718256945590,0.22599178,67587.0,67586.0,0.028946]
[1718256946401,0.24599178,67587.0,67586.0,0.028946]
[1718256946576,0.23599178,67587.0,67586.0,0.028946]
[1718256947616,0.22599178,67587.0,67586.0,0.028946]
[1718256947858,0.24599178,67587.0,67586.0,0.028946]
[1718256950454,0.22599178,67587.0,67586.0,0.028946]
[1718256951551,0.24599178,67587.0,67586.0,0.028946]
[1718256952621,0.22599178,67587.0,67586.0,0.028946]
[1718256953243,0.22570658,67587.0,67586.0,0.028946]
[1718256953895,0.24570658,67587.0,67586.0,0.028946]
[1718256954638,0.22570658,67587.0,67586.0,0.028946]
[1718256954846,0.24570658,67587.0,67586.0,0.028946]
[1718256955070,0.22570658,67587.0,67586.0,0.028946]
[1718256955286,0.24570658,67587.0,67586.0,0.028946]
[1718256955499,0.22570658,67587.0,67586.0,0.028946]
[1718256957179,0.53270595,67587.0,67586.0,0.028946]
[1718256957576,0.55270595,67587.0,67586.0,0.028946]
[1718256958905,0.53270595,67587.0,67586.0,0.028946]
[1718256961156,0.31849115,67587.0,67586.0,0.028946]
[1718256961824,0.01149178,67587.0,67586.0,0.028946]
[1718256962183,0.01118564,67587.0,67586.0,0.028946]
[1718256962427,0.1432,67592.0,67586.0,0.028946]
[1718256962757,0.01118564,67587.0,67586.0,0.028946]
[1718256962958,0.28751993,67592.0,67586.0,0.028946]
[1718256963163,0.01118564,67587.0,67586.0,0.028946]
[1718256963369,0.28751993,67592.0,67586.0,0.028946]
[1718256963573,0.01115705,67587.0,67586.0,0.000946]
[1718256963778,0.28751993,67592.0,67586.0,0.014946]
[1718256963986,0.30697582,67591.0,67586.0,0.028946]
[1718256964214,0.30697582,67591.0,67586.0,0.014946]
[1718256964546,0.01112638,67590.0,67586.0,0.000946]
[1718256964966,0.01112638,67590.0,67586.0,0.007946]
[1718256965349,0.01112638,67590.0,67586.0,0.000946]
[1718256965614,0.01112638,67590.0,67586.0,0.014946]
[1718256965825,0.30697601,67589.0,67586.0,0.014946]
[1718256966012,0.30697601,67589.0,67586.0,0.000946]
[1718256966277,0.31811345,67589.0,67586.0,0.000946]
[1718256966467,0.01113744,67589.0,67586.0,0.003946]
[1718256966710,0.1456,67591.0,67586.0,0.003946]
[1718256966926,0.01113744,67588.0,67586.0,0.003946]
[1718256967169,0.1456,67591.0,67586.0,0.003946]
[1718256967390,0.01113744,67587.0,67586.0,0.003946]
[1718256967623,0.1456,67591.0,67586.0,0.005946]
[1718256967869,0.01113744,67590.0,67586.0,0.005946]
[1718256968079,0.01113744,67590.0,67586.0,0.003946]
[1718256968299,0.01113744,67590.0,67586.0,0.009946]
[1718256969161,0.0915,67589.0,67586.0,0.009946]
[1718256969387,0.0715,67589.0,67586.0,0.013946]
[1718256969594,0.31813387,67588.0,67586.0,0.006946]
[1718256969810,0.01114718,67588.0,67586.0,0.006946]
[1718256970032,0.30698878,67587.0,67586.0,0.003946]
[1718256970240,0.30698878,67587.0,67586.0,0.004946]
[1718256970481,0.01114132,67587.0,67586.0,0.004946]
[1718256970893,0.01114132,67587.0,67586.0,0.000946]
[1718256971104,0.0715,67589.0,67586.0,0.011946]
[1718256971311,0.01114028,67587.0,67586.0,0.011946]
[1718256971524,0.0715,67589.0,67586.0,0.005946]
[1718256971782,0.01114028,67587.0,67586.0,0.005946]
[1718256971998,0.47048591,67587.0,67586.0,0.012946]
[1718256972449,0.48162642,67587.0,67586.0,0.007946]
[1718256972661,0.48162642,67587.0,67586.0,0.014946]
[1718256973148,0.48162642,67587.0,67586.0,0.000946]
[1718256973389,0.48134097,67587.0,67586.0,0.005946]
[1718256973645,0.48134097,67587.0,67586.0,0.010946]
[1718256973851,0.54582667,67587.0,67586.0,0.010946]
[1718256974091,0.48134097,67587.0,67586.0,0.005946]
[1718256974305,0.46134097,67587.0,67586.0,0.005946]
[1718256974517,0.46134097,67587.0,67586.0,0.011946]
[1718256975148,0.48134097,67587.0,67586.0,0.011946]
[1718256975553,0.46134097,67587.0,67586.0,0.011946]
[1718256978140,0.48134097,67587.0,67586.0,0.011946]
[1718256978405,0.46134097,67587.0,67586.0,0.011946]
[1718256978812,0.48134097,67587.0,67586.0,0.011946]
[1718256980479,0.31812642,67587.0,67586.0,0.011946]
[1718256980690,0.31812642,67587.0,67586.0,0.074746]
[1718256980933,0.31812642,67587.0,67586.0,0.152146]
[1718256981055,0.01114051,67587.0,67586.0,0.233646]
[1718256981226,0.00086,67593.0,67586.0,0.083446]
[1718256981431,0.00086,67593.0,67590.0,0.01]
[1718256981662,0.00086,67593.0,67592.0,0.02]
[1718256981863,0.00086,67593.0,67592.0,0.07741716]
[1718256982083,0.00086,67593.0,67592.0,0.09741716]
[1718256982627,0.00086,67593.0,67592.0,0.38573719]
[1718256982840,0.00086,67593.0,67592.0,0.37981993]
[1718256983278,0.00086,67593.0,67592.0,0.38481993]
[1718256983470,0.00057449,67593.0,67592.0,0.47981993]
[1718256983646,0.00057449,67593.0,67592.0,0.66197616]
[1718256983848,0.00057449,67593.0,67592.0,0.69367658]
[1718256984060,0.00057449,67593.0,67592.0,0.68838116]
[1718256984232,0.00057449,67593.0,67592.0,0.63970803]
[1718256984438,0.00057449,67593.0,67592.0,0.49381993]
[1718256985548,0.00057449,67593.0,67592.0,0.50781993]
[1718256985942,0.0004886,67593.0,67592.0,0.50781993]
[1718256989679,0.0004886,67593.0,67592.0,0.272]
[1718256989879,0.0004886,67593.0,67592.0,0.3435]
[1718256991895,0.0004886,67593.0,67592.0,0.292]
[1718256992105,0.0004886,67593.0,67592.0,0.3635]
[1718256992731,0.0004886,67593.0,67592.0,0.128]
[1718256992948,0.0004886,67593.0,67592.0,0.028]
[1718256994236,0.01164633,67593.0,67592.0,0.028]
[1718257013388,0.01136112,67593.0,67592.0,0.028]
[1718257014078,0.01136112,67593.0,67592.0,0.1692]
[1718257014706,0.00020339,67593.0,67592.0,0.1692]
[1718257018738,0.00020339,67593.0,67592.0,0.1068]
[1718257018951,0.00020339,67593.0,67592.0,0.028]
[1718257019173,0.14110339,67593.0,67592.0,0.028]
[1718257019599,0.2239532,67593.0,67592.0,0.028]
[1718257020393,0.53092576,67593.0,67592.0,0.028]
[1718257020566,0.53092576,67593.0,67592.0,0.014]
[1718257020770,0.53092576,67593.0,67586.0,0.000946]
[1718257020992,0.2249532,67593.0,67586.0,0.000946]
[1718257021593,0.2239532,67593.0,67586.0,0.000946]
[1718257021781,0.142,67592.0,67586.0,0.000946]
[1718257022301,0.01134981,67591.0,67586.0,0.000946]
[1718257022862,0.1404,67590.0,67586.0,0.000946]
[1718257023599,0.01134981,67589.0,67586.0,0.000946]
[1718257024148,0.01134981,67589.0,67586.0,0.002946]
[1718257025386,0.01134981,67589.0,67586.0,0.005946]
[1718257025602,0.01134981,67589.0,67586.0,0.003946]
[1718257025811,0.01134981,67589.0,67586.0,0.006946]
[1718257037159,0.07170339,67593.0,67587.0,0.1377]
[1718257037160,0.00020339,67593.0,67587.0,0.1377]
[1718257037579,0.01130954,67592.0,67587.0,0.1377]
[1718257039425,0.01230954,67592.0,67587.0,0.1377]
[1718257040426,0.01230954,67592.0,67589.0,0.02]
[1718257040677,0.001,67592.0,67590.0,0.145]
[1718257041703,0.01136561,67591.0,67590.0,0.145]
[1718257042308,0.00020339,67593.0,67590.0,0.159]
[1718257042558,0.00020339,67593.0,67590.0,0.145]
[1718257042559,0.01136561,67592.0,67590.0,0.145]
[1718257042954,0.01136561,67592.0,67590.0,0.159]
[1718257043089,0.00020339,67593.0,67590.0,0.145]
[1718257043315,0.01136345,67592.0,67590.0,0.145]
[1718257043514,0.00020339,67593.0,67590.0,0.159]
[1718257043727,0.01136345,67592.0,67590.0,0.159]
[1718257043956,0.00020339,67593.0,67590.0,0.173]
[1718257044360,0.0113628,67592.0,67590.0,0.159]
[1718257044792,0.00020339,67593.0,67590.0,0.159]
[1718257045218,0.0113628,67592.0,67590.0,0.159]
[1718257045657,0.00020339,67593.0,67590.0,0.159]
[1718257045866,0.01136294,67592.0,67590.0,0.145]
[1718257046076,0.00020339,67593.0,67590.0,0.145]
[1718257046296,0.01136294,67592.0,67590.0,0.159]
[1718257046551,0.00020339,67593.0,67590.0,0.159]
[1718257046977,0.01136294,67592.0,67590.0,0.173]
[1718257047406,0.00020339,67593.0,67590.0,0.159]
[1718257047825,0.01136294,67592.0,67590.0,0.173]
[1718257048056,0.00020339,67593.0,67590.0,0.159]
[1718257048264,0.01136222,67592.0,67590.0,0.169]
[1718257048472,0.00020339,67593.0,67590.0,0.183]
[1718257048791,0.01136222,67592.0,67590.0,0.169]
[1718257049003,0.01136222,67592.0,67590.0,0.159]
[1718257049241,0.00020339,67593.0,67590.0,0.159]
[1718257049624,0.01136222,67592.0,67590.0,0.159]
[1718257050023,0.00020339,67593.0,67590.0,0.159]
[1718257050224,0.00020339,67593.0,67590.0,0.183]
[1718257050436,0.01136222,67592.0,67591.0,0.02]
[1718257050871,0.00020339,67593.0,67592.0,0.02]
[1718257051075,0.00020339,67593.0,67590.0,0.159]
[1718257051076,0.01156561,67593.0,67590.0,0.145]
[1718257051296,0.01156561,67593.0,67590.0,0.159]
[1718257052104,0.01156561,67593.0,67592.0,0.014]
[1718257053642,0.01156561,67593.0,67590.0,0.145]
[1718257054260,0.01156561,67593.0,67592.0,0.02]
[1718257054488,0.01156561,67593.0,67592.0,0.014]
[1718257054703,0.01156561,67593.0,67590.0,0.159]
[1718257054906,0.01128642,67593.0,67590.0,0.159]
[1718257055112,0.01128642,67593.0,67590.0,0.173]
[1718257055284,0.00074136,67596.0,67590.0,0.145]
[1718257055531,0.01325676,67592.0,67591.0,0.02]
[1718257055753,0.00074136,67596.0,67592.0,0.034]
[1718257055965,0.00074136,67596.0,67595.0,0.1614]
[1718257058365,0.00074136,67596.0,67595.0,0.1684]
[1718257059671,0.00074136,67596.0,67595.0,0.42671993]
[1718257060092,0.00074136,67596.0,67595.0,0.54243966]
[1718257060298,0.00074136,67596.0,67595.0,0.53543966]
[1718257060527,0.00074136,67596.0,67595.0,0.48677318]
[1718257060757,0.00074136,67596.0,67595.0,0.44271993]
[1718257060973,0.00074136,67596.0,67595.0,0.50077334]
[1718257061187,0.00074136,67596.0,67595.0,0.45671993]
[1718257061396,0.00074136,67596.0,67595.0,0.50077334]
[1718257062033,0.00074136,67596.0,67595.0,0.45671993]
[1718257069062,0.00074136,67596.0,67595.0,0.44006651]
[1718257072670,0.00074136,67596.0,67595.0,0.54006651]
[1718257073246,0.00074136,67596.0,67595.0,0.44006651]
[1718257073451,0.00045606,67596.0,67595.0,0.44006651]
[1718257073670,0.00045606,67596.0,67595.0,0.54006651]
[1718257074951,0.00045606,67596.0,67595.0,0.79576651]
[1718257075493,0.00045606,67596.0,67595.0,0.9675106]
[1718257076319,0.00045606,67596.0,67595.0,0.86555572]
[1718257076526,0.00045606,67596.0,67595.0,0.87955572]
[1718257076911,0.00045606,67596.0,67595.0,0.86555572]
[1718257077340,0.00045606,67596.0,67595.0,0.87955572]
[1718257078512,0.00045606,67596.0,67595.0,0.79576651]
[1718257078703,0.00045606,67596.0,67595.0,0.88026923]
[1718257082408,0.00045606,67596.0,67595.0,0.79576651]
[1718257088289,0.45397906,67596.0,67595.0,0.79576651]
[1718257088500,0.45397906,67596.0,67595.0,0.83494188]
[1718257088702,0.46701065,67596.0,67595.0,0.83494188]
[1718257090233,0.00086,67604.0,67603.0,0.3757]
[1718257090433,0.00086,67604.0,67603.0,0.89698104]
[1718257091682,0.00086,67604.0,67603.0,0.91098104]
[1718257092235,0.00086,67604.0,67603.0,0.92498104]
[1718257092467,0.00086,67604.0,67603.0,0.91098104]
[1718257092713,0.00857,67617.0,67616.0,0.5248]
[1718257092932,0.00857,67617.0,67616.0,0.86361993]
[1718257093746,0.00857,67617.0,67616.0,0.76361993]
[1718257094327,0.00857,67617.0,67616.0,0.87761993]
[1718257094919,0.00857,67617.0,67616.0,0.89161993]
[1718257095485,0.00857,67617.0,67616.0,0.93548183]
[1718257095686,0.00857,67617.0,67616.0,0.89161993]
[1718257095827,0.00856,67621.0,67618.0,0.22]
[1718257096037,0.00856,67621.0,67618.0,0.64301993]
[1718257096237,0.14986,67621.0,67618.0,0.26431993]
[1718257096444,0.14986,67621.0,67618.0,0.38581993]
[1718257096666,0.0195405,67619.0,67618.0,0.38581993]
[1718257096878,0.00895912,67619.0,67618.0,0.38581993]
[1718257097533,0.00857,67619.0,67618.0,0.39981993]
[1718257098259,0.00857,67619.0,67618.0,0.38581993]
[1718257098477,0.00857,67619.0,67618.0,0.39981993]
[1718257098731,0.00857,67619.0,67618.0,0.38581993]
[1718257098909,0.00857,67619.0,67618.0,0.39981993]
[1718257099777,0.00857,67619.0,67618.0,0.41381993]
[1718257102186,0.00857,67619.0,67618.0,0.34231993]
[1718257102393,0.00857,67619.0,67618.0,0.41381993]
[1718257103412,0.00857,67619.0,67618.0,0.34231993]
[1718257103622,0.00857,67619.0,67618.0,0.41381993]
[1718257105143,0.00857,67619.0,67618.0,0.34231993]
[1718257107049,0.0193574,67619.0,67618.0,0.34231993]
[1718257107279,0.00857,67619.0,67618.0,0.34231993]
[1718257107499,0.01935827,67619.0,67618.0,0.34231993]
[1718257107747,0.00857,67619.0,67618.0,0.34231993]
[1718257108375,0.01935894,67619.0,67618.0,0.34231993]
[1718257109301,0.01935894,67619.0,67618.0,0.31431993]
[1718257109684,0.00857,67619.0,67618.0,0.34231993]
[1718257111424,0.00857,67619.0,67618.0,0.49801993]
[1718257111670,0.00857,67619.0,67618.0,0.81111993]
[1718257111849,0.00857,67619.0,67618.0,0.71111993]
[1718257112144,0.00857,67619.0,67618.0,0.60001993]
[1718257112387,0.00857,67619.0,67618.0,0.52101993]
[1718257112598,0.00857,67619.0,67618.0,0.5823669]
[1718257113414,0.00857,67619.0,67618.0,0.58236965]
[1718257113843,0.00857,67619.0,67618.0,0.63236965]
[1718257114072,0.00857,67619.0,67618.0,0.77326965]
[1718257114514,0.00857,67619.0,67618.0,0.87326965]
[1718257114721,0.00857,67619.0,67618.0,0.77326965]
[1718257115132,0.00857,67619.0,67618.0,0.58236965]
[1718257115351,0.14987,67619.0,67618.0,0.42666965]
[1718257115969,0.14987,67619.0,67618.0,0.35366965]
[1718257115970,0.14757,67619.0,67618.0,0.35366965]
[1718257116381,0.14757,67619.0,67618.0,0.33366965]
[1718257116629,0.14757,67619.0,67618.0,0.23366965]
[1718257117049,0.15837778,67619.0,67618.0,0.23366965]
[1718257119271,0.15837778,67619.0,67618.0,0.23367563]
[1718257119449,0.15837778,67619.0,67618.0,0.23125163]
[1718257122309,0.15837778,67619.0,67618.0,0.25125163]
[1718257122818,0.15837778,67619.0,67618.0,0.18989593]
[1718257122985,0.15837778,67619.0,67618.0,0.24659269]
[1718257124766,0.15831955,67619.0,67618.0,0.24659269]
[1718257130822,0.15831955,67619.0,67618.0,0.26417709]
[1718257131859,0.15831955,67619.0,67618.0,0.26380209]
[1718257132103,0.15831955,67619.0,67618.0,0.24380209]
[1718257135374,0.15831955,67619.0,67618.0,0.22621769]
[1718257136400,0.15831955,67619.0,67618.0,0.08935536]
[1718257138014,0.15831955,67619.0,67618.0,0.10703349]
[1718257139419,0.15831955,67619.0,67618.0,0.08935787]
[1718257143914,0.15831955,67619.0,67618.0,0.028]
[1718257143915,0.22981955,67619.0,67618.0,0.028]
[1718257147867,0.15831955,67619.0,67618.0,0.028]
[1718257152016,0.01931955,67619.0,67618.0,0.028]
[1718257152219,0.01931955,67619.0,67618.0,0.1704]
[1718257152422,0.00857,67619.0,67618.0,0.23175898]
[1718257152627,0.00857,67619.0,67618.0,0.25175898]
[1718257153055,0.00857,67619.0,67618.0,0.23175898]
[1718257153481,0.00857,67619.0,67618.0,0.25175898]
[1718257157117,0.00857,67619.0,67618.0,0.16555898]
[1718257157368,0.00857,67619.0,67618.0,0.18555898]
[1718257157583,0.00857,67619.0,67618.0,0.10935898]
[1718257157999,0.01938513,67619.0,67618.0,0.10935898]
[1718257158203,0.0087707,67619.0,67618.0,0.10935898]
[1718257159031,0.00857,67619.0,67618.0,0.10935898]
[1718257159276,0.01938513,67619.0,67618.0,0.25367891]
[1718257159501,0.0087707,67619.0,67618.0,0.72935097]
[1718257159725,0.00857,67619.0,67618.0,0.73547926]
[1718257160110,0.00857,67619.0,67618.0,0.84553205]
[1718257160319,0.00857,67619.0,67618.0,0.95847926]
[1718257160739,0.00857,67619.0,67618.0,0.96730075]
[1718257161179,0.00857,67619.0,67618.0,0.95847926]
[1718257161386,0.00857,67619.0,67618.0,1.22300075]
[1718257161588,0.00857,67619.0,67618.0,1.34624261]
[1718257161762,0.00857,67619.0,67618.0,1.21417926]
[1718257162173,0.00857,67619.0,67618.0,1.20017926]
[1718257162371,0.00857,67619.0,67618.0,1.33214464]
[1718257162600,0.00857,67619.0,67618.0,1.34614464]
[1718257162920,0.00857,67619.0,67618.0,1.43877258]
[1718257163142,0.00856,67621.0,67620.0,0.3757]
[1718257163342,0.00856,67621.0,67620.0,1.03280283]
[1718257163546,0.00856,67621.0,67620.0,1.09186075]
[1718257164414,0.00856,67621.0,67620.0,1.22371304]
[1718257164655,0.00856,67621.0,67620.0,1.23771304]
[1718257165319,0.00856,67621.0,67620.0,1.25171304]
[1718257165465,0.00856,67621.0,67620.0,1.12867557]
[1718257165886,0.00856,67621.0,67620.0,1.11986075]
[1718257166437,0.00856,67621.0,67620.0,1.1195259]
[1718257168197,0.00856,67621.0,67620.0,0.4100259]
[1718257168654,0.00856,67621.0,67620.0,0.17231993]
[1718257169034,0.00856,67621.0,67620.0,0.17831993]
[1718257169476,0.00856,67621.0,67620.0,0.25831993]
[1718257169703,0.00856,67621.0,67620.0,0.27231993]
[1718257170115,0.00856,67621.0,67620.0,0.25831993]
[1718257170235,0.00856,67621.0,67620.0,0.24431993]
[1718257170451,0.00856,67621.0,67620.0,0.27231993]
[1718257170672,0.07106,67621.0,67620.0,0.27231993]
[1718257172468,0.08201672,67621.0,67620.0,0.27231993]
[1718257174451,0.01951672,67621.0,67620.0,0.128]
[1718257175957,0.01951672,67621.0,67620.0,0.028]
[1718257182752,0.00977245,67621.0,67620.0,0.028]
[1718257183174,0.00932298,67621.0,67620.0,0.028]
[1718257190252,0.00932298,67621.0,67620.0,0.17231993]
[1718257190435,0.00856,67624.0,67620.0,0.17231993]
[1718257190632,0.00856,67624.0,67621.0,0.14431993]
[1718257191301,0.08986,67624.0,67621.0,0.14431993]
[1718257192436,0.08986,67624.0,67621.0,0.15831993]
[1718257192845,0.08986,67624.0,67621.0,0.17231993]
[1718257195539,0.15576,67624.0,67621.0,0.17231993]
[1718257195901,0.00879004,67623.0,67621.0,0.17231993]
[1718257196712,0.00879004,67623.0,67621.0,0.15831993]
[1718257197118,0.00879004,67623.0,67621.0,0.14431993]
[1718257197330,0.00879004,67623.0,67621.0,0.17231993]
[1718257198125,0.00879004,67623.0,67621.0,0.15831993]
[1718257198621,0.00879004,67623.0,67621.0,0.17231993]
[1718257199051,0.00879004,67623.0,67621.0,0.15831993]
[1718257199260,0.00879004,67623.0,67621.0,0.15926593]
[1718257199464,0.00879004,67623.0,67621.0,0.17326593]
[1718257199880,0.00879004,67623.0,67621.0,0.14526593]
[1718257200284,0.00879004,67623.0,67621.0,0.17326593]
[1718257209575,0.00879004,67623.0,67621.0,0.19326593]
[1718257209813,0.00879004,67623.0,67622.0,0.1531]
[1718257210007,0.00856,67624.0,67622.0,0.29741993]
[1718257210176,0.00856,67624.0,67623.0,0.22521993]
[1718257210470,0.00856,67624.0,67623.0,0.26918642]
[1718257210624,0.00856,67624.0,67623.0,0.36918642]
[1718257210787,0.00856,67624.0,67623.0,0.40771993]
[1718257210992,0.00856,67624.0,67623.0,0.69286258]
[1718257211474,0.00856,67624.0,67623.0,0.58729679]
[1718257212218,0.00846,67624.0,67623.0,0.58729679]
[1718257212630,0.00846,67624.0,67623.0,0.69721303]
[1718257213068,0.00846,67624.0,67623.0,0.72521303]
[1718257214390,0.00846,67624.0,67623.0,0.70326227]
[1718257216533,0.01585426,67624.0,67623.0,0.54639679]
[1718257216736,0.01585426,67624.0,67623.0,0.51787452]
[1718257216952,0.09225426,67624.0,67623.0,0.128]
[1718257217153,0.15475426,67624.0,67623.0,0.128]
[1718257218513,0.15475426,67624.0,67623.0,0.028]
[1718257221935,0.15475426,67624.0,67623.0,0.15070413]
[1718257222137,0.15475426,67624.0,67623.0,0.25070413]
[1718257223804,0.15475426,67624.0,67623.0,0.70318402]
[1718257223805,0.01585426,67624.0,67623.0,0.70318402]
[1718257224034,0.01585426,67624.0,67623.0,0.94899675]
[1718257224410,0.01585426,67624.0,67623.0,0.70318402]
[1718257224615,0.01585426,67624.0,67623.0,0.6255164]
[1718257224796,0.01585426,67624.0,67623.0,0.6970164]
[1718257224992,0.01585426,67624.0,67623.0,0.55952406]
[1718257225222,0.01585426,67624.0,67623.0,0.54582406]
[1718257225631,0.01585426,67624.0,67623.0,0.58982219]
[1718257226329,0.01585426,67624.0,67623.0,0.29470226]
[1718257226939,0.01585426,67624.0,67623.0,0.25070413]
[1718257227729,0.01585426,67624.0,67623.0,0.29470226]
[1718257227984,0.01585426,67624.0,67623.0,0.25070413]
[1718257228358,0.15755426,67624.0,67623.0,0.25070413]
[1718257229610,0.15755426,67624.0,67623.0,0.15070413]
[1718257229830,0.15755426,67624.0,67623.0,0.15071155]